fUSD/lending_fUSD_20240301
["ID","MTS","AMOUNT","RATE_DAILY","PERIOD"]
[315931255,1709289049114,-500.0,0.00022191,2]
[315931256,1709289049123,-500.0,0.00022191,2]
[315931257,1709289049132,-500.0,0.00022191,2]
[315931258,1709289049141,-995.6,0.00022191,2]
[315931259,1709289049150,-784.24,0.00022191,2]
[315931260,1709289049160,-594.19323363,0.00022191,2]
[315931261,1709289049170,-500.0,0.00022191,2]
[315931262,1709289049179,-615.19637294,0.00022191,2]
[315931263,1709289049189,-500.0,0.00022191,2]
[315931264,1709289049199,-500.0,0.00022191,2]
[315931265,1709289049211,-500.0,0.00022191,2]
[315931266,1709289049220,-500.0,0.00022191,2]
[315931267,1709289049230,-500.0,0.00022191,2]
[315931268,1709289049239,-500.0,0.00022191,2]
[315931269,1709289049249,-566.63103369,0.00022191,2]
[315931270,1709289049258,-500.0,0.00022191,2]
[315931271,1709289049267,-582.9,0.00022191,2]
[315931272,1709289049277,-500.0,0.00022191,2]
[315931273,1709289049286,-500.0,0.00022191,2]
[315931274,1709289049295,-500.0,0.00022191,2]
[315931275,1709289049304,-500.0,0.00022191,2]
[315931276,1709289049313,-500.0,0.00022191,2]
[315931277,1709289049322,-500.0,0.00022191,2]
[315931278,1709289049331,-500.0,0.00022191,2]
[315931279,1709289049340,-522.58,0.00022191,2]
[315931280,1709289049351,-551.48,0.00022191,2]
[315931281,1709289049361,-500.0,0.00022191,2]
[315931282,1709289049370,-500.0,0.00022191,2]
[315931283,1709289049379,-500.0,0.00022191,2]
[315931284,1709289049389,-500.0,0.00022191,2]
[315931285,1709289049398,-500.0,0.00022191,2]
[315931286,1709289049406,-500.0,0.00022191,2]
[315931287,1709289049416,-1018.81,0.00022191,2]
[315931288,1709289049426,-500.0,0.00022191,2]
[315931289,1709289049435,-500.0,0.00022191,2]
[315931290,1709289049445,-500.0,0.00022191,2]
[315931291,1709289049454,-500.0,0.00022191,2]
[315931292,1709289049463,-500.0,0.00022191,2]
[315931293,1709289049472,-543.82,0.00022191,2]
[315931294,1709289049482,-736.03,0.00022191,2]
[315931295,1709289049492,-500.0,0.00022191,2]
[315931296,1709289049501,-500.0,0.00022191,2]
[315931297,1709289049510,-971.42,0.00022191,2]
[315931298,1709289049519,-500.0,0.00022191,2]
[315931299,1709289049528,-359.22122796,0.00022191,2]
[315931300,1709289049538,-612.13,0.00022191,2]
[315931301,1709289049549,-500.0,0.00022191,2]
[315931302,1709289049560,-500.0,0.00022191,2]
[315931303,1709289049570,-500.0,0.00022191,2]
[315931304,1709289049581,-518.84,0.00022191,2]
[315931305,1709289049591,-500.0,0.00022191,2]
[315931306,1709289049600,-500.0,0.00022191,2]
[315931307,1709289049610,-500.0,0.00022191,2]
[315931308,1709289049619,-500.0,0.00022191,2]
[315931309,1709289049629,-500.0,0.00022191,2]
[315931310,1709289049640,-619.16,0.00022191,2]
[315931311,1709289049650,-504.29,0.00022191,2]
[315931312,1709289049659,-500.0,0.00022191,2]
[315931313,1709289049669,-500.0,0.00022191,2]
[315931314,1709289049678,-500.0,0.00022191,2]
[315931315,1709289049687,-500.0,0.00022191,2]
[315931316,1709289049697,-525.94,0.00022191,2]
[315931317,1709289049707,-500.0,0.00022191,2]
[315931318,1709289049716,-500.0,0.00022191,2]
[315931319,1709289049727,-728.28,0.00022191,2]
[315931320,1709289049736,-547.33,0.00022191,2]
[315931321,1709289049745,-500.0,0.00022191,2]
[315931322,1709289049754,-500.0,0.00022191,2]
[315931323,1709289049764,-500.0,0.00022191,2]
[315931324,1709289049773,-500.0,0.00022191,2]
[315931325,1709289049782,-500.0,0.00022191,2]
[315931326,1709289049792,-593.02,0.00022191,2]
[315931327,1709289049802,-500.0,0.00022191,2]
[315931328,1709289049811,-776.32,0.00022191,2]
[315931329,1709289049821,-500.0,0.00022191,2]
[315931330,1709289049831,-500.0,0.00022191,2]
[315931331,1709289049841,-500.0,0.00022191,2]
[315931332,1709289049850,-500.0,0.00022191,2]
[315931333,1709289049859,-885.57,0.00022191,2]
[315931334,1709289049869,-500.0,0.00022191,2]
[315931335,1709289049879,-720.4,0.00022191,2]
[315931336,1709289049888,-230.65376123,0.00022191,2]
[315931337,1709289049898,-500.0,0.00022191,2]
[315931338,1709289049907,-500.0,0.00022191,2]
[315931339,1709289049916,-500.0,0.00022191,2]
[315931340,1709289049927,-212.38,0.00022191,2]
[315931341,1709289049936,-500.0,0.00022191,2]
[315931342,1709289049945,-500.0,0.00022191,2]
[315931343,1709289049955,-500.0,0.00022191,2]
[315931344,1709289049964,-618.01,0.00022191,2]
[315931345,1709289049973,-500.0,0.00022191,2]
[315931346,1709289049982,-744.9,0.00022191,2]
[315931347,1709289049991,-442.24040466,0.00022191,2]
[315931348,1709289050001,-568.54,0.00022191,2]
[315931349,1709289050010,-500.0,0.00022191,2]
[315931350,1709289050019,-500.0,0.00022191,2]
[315931351,1709289050029,-500.0,0.00022191,2]
[315931352,1709289050038,-500.0,0.00022191,2]
[315931353,1709289050048,-568.43,0.00022191,2]
[315931354,1709289050058,-500.0,0.00022191,2]
[315931355,1709289050067,-500.0,0.00022191,2]
[315931356,1709289050076,-675.04,0.00022191,2]
[315931357,1709289050086,-500.0,0.00022191,2]
[315931358,1709289050096,-153.88,0.00022191,2]
[315931359,1709289050105,-500.0,0.00022191,2]
[315931360,1709289050114,-163.54918303,0.00022191,2]
[315931361,1709289050124,-500.0,0.00022191,2]
[315931362,1709289050133,-500.0,0.00022191,2]
[315931363,1709289050143,-313.7666232,0.00022191,2]
[315931364,1709289050153,-510.64,0.00022191,2]
[315931365,1709289050163,-531.86026619,0.00022191,2]
[315931366,1709289050174,-564.27,0.00022191,2]
[315931367,1709289050185,-550.9,0.00022191,2]
[315931368,1709289050194,-500.0,0.00022191,2]
[315931369,1709289050204,-500.0,0.00022191,2]
[315931370,1709289050214,-161.64726881,0.00022191,2]
[315931371,1709289050223,-838.85,0.00022191,2]
[315931372,1709289050233,-500.0,0.00022191,2]
[315931373,1709289050243,-500.0,0.00022191,2]
[315931374,1709289050253,-500.0,0.00022191,2]
[315931375,1709289050262,-682.31,0.00022191,2]
[315931376,1709289050272,-846.18,0.00022191,2]
[315931377,1709289050282,-615.25,0.00022191,2]
[315931378,1709289050291,-669.48,0.00022191,2]
[315931379,1709289050300,-500.0,0.00022191,2]
[315931380,1709289050310,-500.0,0.00022191,2]
[315931381,1709289050319,-500.0,0.00022191,2]
[315931382,1709289050328,-500.0,0.00022191,2]
[315931383,1709289050338,-547.81,0.00022191,2]
[315931384,1709289050347,-599.62,0.00022191,2]
[315931385,1709289050357,-500.0,0.00022191,2]
[315931386,1709289050366,-500.0,0.00022191,2]
[315931387,1709289050376,-500.0,0.00022191,2]
[315931388,1709289050385,-500.0,0.00022191,2]
[315931389,1709289050395,-855.86,0.00022191,2]
[315931390,1709289050404,-500.0,0.00022191,2]
[315931391,1709289050414,-500.0,0.00022191,2]
[315931392,1709289050425,-500.0,0.00022191,2]
[315931393,1709289050435,-500.0,0.00022191,2]
[315931394,1709289050443,-500.0,0.00022191,2]
[315931395,1709289050452,-500.0,0.00022191,2]
[315931396,1709289050461,-552.6,0.00022191,2]
[315931397,1709289050470,-500.0,0.00022191,2]
[315931398,1709289050480,-500.0,0.00022191,2]
[315931399,1709289050491,-626.4,0.00022191,2]
[315931400,1709289050500,-500.0,0.00022191,2]
[315931401,1709289050510,-500.0,0.00022191,2]
[315931402,1709289050520,-500.0,0.00022191,2]
[315931403,1709289050530,-500.0,0.00022191,2]
[315931404,1709289050543,-2073.32,0.00022191,2]
[315931405,1709289050555,-500.0,0.00022191,2]
[315931406,1709289050564,-500.0,0.00022191,2]
[315931407,1709289050574,-500.0,0.00022191,2]
[315931408,1709289050584,-500.0,0.00022191,2]
[315931409,1709289050594,-500.0,0.00022191,2]
[315931410,1709289050603,-500.0,0.00022191,2]
[315931411,1709289050613,-500.0,0.00022191,2]
[315931412,1709289050623,-796.04,0.00022191,2]
[315931413,1709289050634,-2216.84,0.00022191,2]
[315931414,1709289050645,-500.0,0.00022191,2]
[315931415,1709289050655,-1903.18,0.00022191,2]
[315931416,1709289050665,-500.0,0.00022191,2]
[315931417,1709289050678,-500.0,0.00022191,2]
[315931418,1709289050688,-1328.48,0.00022191,2]
[315931419,1709289050698,-500.0,0.00022191,2]
[315931420,1709289050708,-1460.46,0.00022191,2]
[315931421,1709289050719,-500.0,0.00022191,2]
[315931422,1709289050729,-1489.78,0.00022191,2]
[315931423,1709289050739,-568.81,0.00022191,2]
[315931424,1709289050749,-500.0,0.00022191,2]
[315931425,1709289050760,-1934.17,0.00022191,2]
[315931426,1709289050771,-500.0,0.00022191,2]
[315931427,1709289050781,-325.69879527,0.00022191,2]
[315931428,1709289050791,-10662.64,0.00022191,2]
[315931429,1709289050801,-4909.27,0.00022191,2]
[315931430,1709289050811,-932.95,0.00022191,2]
[315931431,1709289050821,-518.61,0.00022191,2]
[315931432,1709289050830,-500.0,0.00022191,2]
[315931433,1709289050840,-1068.13,0.00022191,2]
[315931434,1709289050849,-1406.97,0.00022191,2]
[315931435,1709289050859,-1964.2,0.00022191,2]
[315931436,1709289050869,-1032.5,0.00022191,2]
[315931437,1709289050879,-1367.21,0.00022191,2]
[315931438,1709289050889,-500.0,0.00022191,2]
[315931439,1709289050898,-1382.04,0.00022191,2]
[315931440,1709289050908,-1001.81,0.00022191,2]
[315931441,1709289050918,-658.04,0.00022191,2]
[315931442,1709289050931,-617.75,0.00022191,2]
[315931443,1709289051013,-500.0,0.00022191,2]
[315931444,1709289051023,-500.0,0.00022191,2]
[315931445,1709289051032,-500.0,0.00022191,2]
[315931446,1709289051041,-822.4,0.00022191,2]
[315931447,1709289051050,-500.0,0.00022191,2]
[315931448,1709289051059,-1216.01,0.00022191,2]
[315931449,1709289051068,-500.0,0.00022191,2]
[315931450,1709289051077,-3968.09,0.00022191,2]
[315931451,1709289051086,-2001.55,0.00022191,2]
[315931452,1709289051095,-500.0,0.00022191,2]
[315931453,1709289051104,-500.0,0.00022191,2]
[315931454,1709289051114,-500.0,0.00022191,2]
[315931455,1709289051123,-2096.04,0.00022191,2]
[315931456,1709289051132,-500.0,0.00022191,2]
[315931457,1709289051141,-201.61935874,0.00022191,2]
[315931458,1709289051150,-1841.67,0.00022191,2]
[315931459,1709289051159,-500.0,0.00022191,2]
[315931460,1709289051168,-1315.18,0.00022191,2]
[315931461,1709289051180,-572.96,0.00022191,2]
[315931462,1709289051189,-2428.45,0.00022191,2]
[315931463,1709289051199,-560.96,0.00022191,2]
[315931464,1709289051208,-656.83,0.00022191,2]
[315931465,1709289051217,-21040.36,0.00022191,2]
[315931466,1709289051226,-836.88,0.00022191,2]
[315931467,1709289051236,-500.0,0.00022191,2]
[315931468,1709289051245,-1458.86,0.00022191,2]
[315931469,1709289051255,-707.98,0.00022191,2]
[315931470,1709289051264,-668.31,0.00022191,2]
[315931471,1709289051273,-1967.61,0.00022191,2]
[315931472,1709289051283,-1703.32,0.00022191,2]
[315931473,1709289051293,-1087.47,0.00022191,2]
[315931474,1709289051303,-768.66,0.00022191,2]
[315931475,1709289051312,-500.0,0.00022191,2]
[315931476,1709289051321,-500.0,0.00022191,2]
[315931477,1709289051330,-500.0,0.00022191,2]
[315931478,1709289051339,-425.0,0.00022191,2]
[315931479,1709289051349,-500.0,0.00022191,2]
[315931480,1709289051358,-550.13,0.00022191,2]
[315931481,1709289051368,-1507.82,0.00022191,2]
[315931482,1709289051377,-312.83,0.00022191,2]
[315931483,1709289051386,-1780.24,0.00022191,2]
[315931484,1709289051396,-536.22,0.00022191,2]
[315931485,1709289051406,-1371.53,0.00022191,2]
[315931486,1709289051415,-1127.4,0.00022191,2]
[315931487,1709289051427,-615.31,0.00022191,2]
[315931488,1709289051436,-4035.05,0.00022191,2]
[315931489,1709289051446,-1006.24,0.00022191,2]
[315931490,1709289051455,-500.0,0.00022191,2]
[315931491,1709289051465,-500.0,0.00022191,2]
[315931492,1709289051474,-3427.77,0.00022191,2]
[315931493,1709289051483,-505.45159415,0.00022191,2]
[315931494,1709289051493,-500.0,0.00022191,2]
[315931495,1709289051502,-626.47,0.00022191,2]
[315931496,1709289051511,-500.0,0.00022191,2]
[315931497,1709289051520,-1707.88,0.00022191,2]
[315931498,1709289051530,-500.0,0.00022191,2]
[315931499,1709289051544,-500.0,0.00022191,2]
[315931500,1709289051553,-500.0,0.00022191,2]
[315931501,1709289051563,-643.41,0.00022191,2]
[315931502,1709289051572,-504.60457819,0.00022191,2]
[315931503,1709289051582,-500.0,0.00022191,2]
[315931504,1709289051592,-2325.72,0.00022191,2]
[315931505,1709289051602,-696.46,0.00022191,2]
[315931506,1709289051611,-500.0,0.00022191,2]
[315931507,1709289051621,-500.0,0.00022191,2]
[315931508,1709289051632,-3039.96,0.00022191,2]
[315931509,1709289051642,-780.16,0.00022191,2]
[315931510,1709289051651,-506.26,0.00022191,2]
[315931511,1709289051661,-1832.73,0.00022191,2]
[315931512,1709289051673,-813.96,0.00022191,2]
[315931513,1709289051683,-500.0,0.00022191,2]
[315931514,1709289051693,-409.44,0.00022191,2]
[315931515,1709289051702,-525.84708015,0.00022191,2]
[315931516,1709289051712,-500.0,0.00022191,2]
[315931517,1709289051722,-530.37,0.00022191,2]
[315931518,1709289051731,-1581.1,0.00022191,2]
[315931519,1709289051741,-537.39,0.00022191,2]
[315931520,1709289051751,-9320.1,0.00022191,2]
[315931521,1709289051760,-474.85626056,0.00022191,2]
[315931522,1709289051770,-1541.52,0.00022191,2]
[315931523,1709289051780,-500.0,0.00022191,2]
[315931524,1709289051790,-500.0,0.00022191,2]
[315931525,1709289051800,-1219.5,0.00022191,2]
[315931526,1709289051809,-500.0,0.00022191,2]
[315931527,1709289051819,-500.0,0.00022191,2]
[315931528,1709289051828,-656.77,0.00022191,2]
[315931529,1709289051838,-500.0,0.00022191,2]
[315931530,1709289051847,-3544.66,0.00022191,2]
[315931531,1709289051856,-967.65,0.00022191,2]
[315931532,1709289051866,-500.0,0.00022191,2]
[315931533,1709289051875,-500.0,0.00022191,2]
[315931534,1709289051884,-1160.25,0.00022191,2]
[315931535,1709289051894,-500.0,0.00022191,2]
[315931536,1709289051903,-850.09,0.00022191,2]
[315931537,1709289051912,-500.0,0.00022191,2]
[315931538,1709289051922,-1759.35,0.00022191,2]
[315931539,1709289051931,-500.0,0.00022191,2]
[315931540,1709289051940,-1688.37,0.00022191,2]
[315931541,1709289051950,-500.0,0.00022191,2]
[315931542,1709289051959,-500.0,0.00022191,2]
[315931543,1709289051969,-606.74,0.00022191,2]
[315931544,1709289051978,-500.0,0.00022191,2]
[315931545,1709289051987,-500.61,0.00022191,2]
[315931546,1709289051996,-990.26,0.00022191,2]
[315931547,1709289052005,-938.73,0.00022191,2]
[315931548,1709289052014,-1156.8,0.00022191,2]
[315931549,1709289052023,-554.62,0.00022191,2]
[315931550,1709289052032,-500.0,0.00022191,2]
[315931551,1709289052041,-500.0,0.00022191,2]
[315931552,1709289052050,-866.31,0.00022191,2]
[315931553,1709289052059,-543.0,0.00022191,2]
[315931554,1709289052068,-4159.79,0.00022191,2]
[315931555,1709289052077,-626.07,0.00022191,2]
[315931556,1709289052087,-292.13664291,0.00022191,2]
[315931557,1709289052096,-1382.78,0.00022191,2]
[315931558,1709289052106,-2155.6,0.00022191,2]
[315931559,1709289052115,-662.13,0.00022191,2]
[315931560,1709289052124,-3139.94,0.00022191,2]
[315931561,1709289052133,-667.63,0.00022191,2]
[315931562,1709289052142,-648.18,0.00022191,2]
[315931563,1709289052151,-500.0,0.00022191,2]
[315931564,1709289052161,-500.0,0.00022191,2]
[315931565,1709289052170,-500.0,0.00022191,2]
[315931566,1709289052180,-2335.42,0.00022191,2]
[315931567,1709289052189,-500.0,0.00022191,2]
[315931568,1709289052198,-500.0,0.00022191,2]
[315931569,1709289052208,-1845.81,0.00022191,2]
[315931570,1709289052217,-500.0,0.00022191,2]
[315931571,1709289052226,-846.35,0.00022191,2]
[315931572,1709289052235,-773.52,0.00022191,2]
[315931573,1709289052244,-1452.8,0.00022191,2]
[315931574,1709289052254,-703.51,0.00022191,2]
[315931575,1709289052263,-500.0,0.00022191,2]
[315931576,1709289052272,-500.0,0.00022191,2]
[315931577,1709289052282,-1280.71,0.00022191,2]
[315931578,1709289052291,-500.0,0.00022191,2]
[315931579,1709289052300,-500.0,0.00022191,2]
[315931580,1709289052309,-500.0,0.00022191,2]
[315931581,1709289052319,-509.39206009,0.00022191,2]
[315931582,1709289052328,-840.94,0.00022191,2]
[315931583,1709289052338,-500.0,0.00022191,2]
[315931584,1709289052347,-803.1,0.00022191,2]
[315931585,1709289052357,-1154.67,0.00022191,2]
[315931586,1709289052366,-714.67,0.00022191,2]
[315931587,1709289052376,-686.36,0.00022191,2]
[315931588,1709289052385,-500.0,0.00022191,2]
[315931589,1709289052395,-697.03,0.00022191,2]
[315931590,1709289052404,-500.0,0.00022191,2]
[315931591,1709289052413,-782.42,0.00022191,2]
[315931592,1709289052424,-500.0,0.00022191,2]
[315931593,1709289052433,-461.68557877,0.00022191,2]
[315931594,1709289052442,-1854.4,0.00022191,2]
[315931595,1709289052452,-1446.42,0.00022191,2]
[315931596,1709289052461,-1727.57,0.00022191,2]
[315931597,1709289052470,-675.56,0.00022191,2]
[315931598,1709289052479,-500.0,0.00022191,2]
[315931599,1709289052489,-500.0,0.00022191,2]
[315931600,1709289052499,-1322.55,0.00022191,2]
[315931601,1709289052508,-835.37,0.00022191,2]
[315931602,1709289052517,-902.62,0.00022191,2]
[315931603,1709289052526,-500.0,0.00022191,2]
[315931604,1709289052536,-3453.65,0.00022191,2]
[315931605,1709289052545,-500.0,0.00022191,2]
[315931606,1709289052559,-500.0,0.00022191,2]
[315931607,1709289052568,-500.0,0.00022191,2]
[315931608,1709289052577,-500.0,0.00022191,2]
[315931609,1709289052586,-2720.5,0.00022191,2]
[315931610,1709289052597,-979.46,0.00022191,2]
[315931611,1709289052606,-500.0,0.00022191,2]
[315931612,1709289052615,-500.0,0.00022191,2]
[315931613,1709289052624,-561.39,0.00022191,2]
[315931614,1709289052635,-892.89,0.00022191,2]
[315931615,1709289052645,-629.61,0.00022191,2]
[315931616,1709289052655,-500.0,0.00022191,2]
[315931617,1709289052664,-500.0,0.00022191,2]
[315931618,1709289052674,-500.0,0.00022191,2]
[315931619,1709289052684,-4456.03,0.00022191,2]
[315931620,1709289052693,-500.0,0.00022191,2]
[315931621,1709289052702,-500.0,0.00022191,2]
[315931622,1709289052711,-1086.51,0.00022191,2]
[315931623,1709289052721,-932.75,0.00022191,2]
[315931624,1709289052731,-500.0,0.00022191,2]
[315931625,1709289052740,-679.0,0.00022191,2]
[315931626,1709289052749,-9663.09,0.00022191,2]
[315931627,1709289052758,-1647.88,0.00022191,2]
[315931628,1709289052767,-3743.78,0.00022191,2]
[315931629,1709289052777,-955.14,0.00022191,2]
[315931630,1709289052786,-7023.2,0.00022191,2]
[315931631,1709289052795,-907.63,0.00022191,2]
[315931632,1709289052804,-1555.04,0.00022191,2]
[315931633,1709289052814,-946.84,0.00022191,2]
[315931634,1709289052823,-500.0,0.00022191,2]
[315931635,1709289052832,-832.6,0.00022191,2]
[315931636,1709289052841,-6974.65,0.00022191,2]
[315931637,1709289052851,-575.91,0.00022191,2]
[315931638,1709289052860,-500.0,0.00022191,2]
[315931639,1709289052869,-500.0,0.00022191,2]
[315931640,1709289052879,-586.43,0.00022191,2]
[315931641,1709289052888,-500.0,0.00022191,2]
[315931642,1709289052899,-1732.8,0.00022191,2]
[315931643,1709289052910,-500.0,0.00022191,2]
[315931644,1709289052919,-500.0,0.00022191,2]
[315931645,1709289052929,-998.61,0.00022191,2]
[315931646,1709289052938,-500.0,0.00022191,2]
[315931647,1709289052948,-988.31,0.00022191,2]
[315931648,1709289052959,-500.0,0.00022191,2]
[315931649,1709289052967,-780.49,0.00022191,2]
[315931650,1709289052976,-500.0,0.00022191,2]
[315931651,1709289052986,-500.0,0.00022191,2]
[315931652,1709289052994,-13566.37,0.00022191,2]
[315931653,1709289053003,-628.74,0.00022191,2]
[315931654,1709289053012,-500.0,0.00022191,2]
[315931655,1709289053020,-500.0,0.00022191,2]
[315931656,1709289053029,-2376.56,0.00022191,2]
[315931657,1709289053038,-581.03,0.00022191,2]
[315931658,1709289053047,-1376.73,0.00022191,2]
[315931659,1709289053057,-956.18,0.00022191,2]
[315931660,1709289053067,-500.0,0.00022191,2]
[315931661,1709289053075,-500.0,0.00022191,2]
[315931662,1709289053084,-508.41,0.00022191,2]
[315931663,1709289053093,-1176.7,0.00022191,2]
[315931664,1709289053101,-603.94,0.00022191,2]
[315931665,1709289053110,-645.8,0.00022191,2]
[315931666,1709289053119,-500.0,0.00022191,2]
[315931667,1709289053128,-572.85,0.00022191,2]
[315931668,1709289053138,-500.0,0.00022191,2]
[315931669,1709289053147,-6299.03,0.00022191,2]
[315931670,1709289053156,-500.0,0.00022191,2]
[315931671,1709289053166,-500.0,0.00022191,2]
[315931672,1709289053177,-547.13,0.00022191,2]
[315931673,1709289053185,-870.38,0.00022191,2]
[315931674,1709289053194,-1640.036235,0.00022191,7]
[315931675,1709289053204,-913.93,0.00022191,2]
[315931676,1709289053213,-500.0,0.00022191,2]
[315931677,1709289053222,-648.25,0.00022191,2]
[315931678,1709289053231,-12441.63085894,0.000222,2]
[315931679,1709289053240,-1000.0,0.000222,2]
[315931680,1709289053249,-1000.0,0.000222,2]
[315931681,1709289053258,-1295.0,0.000222,2]
[315931682,1709289053267,-754.01,0.00022212,2]
[315931683,1709289053276,-50000.0,0.00022213,2]
[315931684,1709289053286,-30858.85260681,0.00022213,2]
[315931685,1709289053295,-50000.0,0.00022213,2]
[315931686,1709289053304,-50000.0,0.00022213,2]
[315931687,1709289053314,-7362.166038,0.00022213,2]
[315931688,1709289053323,-50000.0,0.00022213,2]
[315931689,1709289053332,-1640.036235,0.00022213,7]
[315931690,1709289053341,-424.53,0.00022219,2]
[315931691,1709289053350,-592.81,0.00022219,2]
[315931692,1709289053359,-200.0,0.00022222,2]
[315931693,1709289053368,-157.14948555,0.0002224,2]
[315931694,1709289053378,-59195.09318585,0.00022246,2]
[315931695,1709289053387,-50000.0,0.00022246,2]
[315931696,1709289053395,-50000.0,0.00022246,2]
[315931697,1709289053404,-34616.566054,0.00022246,2]
[315931698,1709289053414,-151.0,0.00022246,7]
[315931699,1709289053424,-151.0,0.00022246,7]
[315931700,1709289053433,-151.0,0.00022246,7]
[315931701,1709289053441,-151.0,0.00022246,7]
[315931702,1709289053451,-151.0,0.00022246,7]
[315931703,1709289053461,-151.0,0.00022246,7]
[315931704,1709289053471,-635.83,0.00022264,2]
[315931705,1709289053480,-158.62,0.00022264,2]
[315931706,1709289053489,-754.01,0.00022272,2]
[315931707,1709289053498,-611.9,0.00022273,2]
[315931708,1709289053507,-777.63,0.00022273,2]
[315931709,1709289053517,-567.97,0.00022273,2]
[315931710,1709289053526,-741.14,0.00022273,2]
[315931711,1709289053538,-2349.13,0.00022273,2]
[315931712,1709289053548,-12919.58,0.00022273,2]
[315931713,1709289053558,-1606.36,0.00022273,2]
[315931714,1709289053567,-500.0,0.00022273,2]
[315931715,1709289053577,-300.0,0.00022282,2]
[315931716,1709289053586,-150.0,0.00022282,2]
[315931717,1709289053595,-150.0,0.00022282,2]
[315931718,1709289053604,-150.0,0.00022282,2]
[315931719,1709289053613,-3404.56229368,0.00022282,2]
[315931720,1709289053622,-167.6,0.00022283,2]
[315931721,1709289053632,-200.0,0.00022284,2]
[315931722,1709289053641,-1000.0,0.00022299,2]
[315931723,1709289053650,-720.0,0.000223,2]
[315931724,1709289053659,-720.0,0.000223,2]
[315931725,1709289053668,-720.0,0.000223,2]
[315931726,1709289053679,-921.3884301,0.0002234,2]
[315931727,1709289053688,-172.60002999,0.00022363,2]
[315931728,1709289053698,-153.55930906,0.00022364,2]
[315931729,1709289053707,-827.61254366,0.00022364,2]
[315931730,1709289053716,-399.40944187,0.00022364,2]
[315931731,1709289053725,-582.35920526,0.00022364,2]
[315931732,1709289053735,-7803.07158388,0.00022364,2]
[315931733,1709289053744,-1214.31428718,0.00022364,5]
[315931734,1709289053753,-6443.94928145,0.00022375,2]
[315931735,1709289053762,-635.83,0.00022379,2]
[315931736,1709289053770,-158.62,0.00022379,2]
[315931737,1709289053780,-225.02,0.000224,2]
[315931738,1709289053789,-1000.0,0.000224,2]
[315931739,1709289053798,-156.93,0.00022405,2]
[315931740,1709289053807,-7794.0,0.00022411,2]
[315931741,1709289053816,-424.53,0.00022411,2]
[315931742,1709289053826,-424.53,0.00022411,2]
[315931743,1709289053835,-779.59810138,0.0002244,2]
[315931744,1709289053844,-51139.83078543,0.0002244,2]
[315931745,1709289054261,-914.8801761,0.0002244,2]
[315931746,1709289054293,-2083.84233136,0.0002244,2]
[315931747,1709289054679,-500.0,0.00021917,2]
[315931748,1709289054689,-18025.75918339,0.0002244,2]
[315931749,1709289054722,-758.74200365,0.0002244,2]
[315931750,1709289054735,-462.25171773,0.0002244,2]
[315931751,1709289054760,-7440.19957522,0.0002244,2]
[315931752,1709289054771,-5274.69130252,0.0002244,2]
[315931753,1709289054783,-255.345171,0.0002244,2]
[315931754,1709289054796,-62155.0,0.0002244,2]